[Event "GER-ch Youth-ODJM 2022 A"]
[Site "Willingen"]
[Date "2022.06.08"]
[Round "5.2"]
[White "Heß, Maxim"]
[Black "Ollhoff, Hannes"]
[Result "0-1"]
[ECO "D00"]
[WhiteElo "1146"]
[BlackElo "1235"]
[Annotator "NA RC COMBH"]
[PlyCount "48"]
[EventDate "2022.06.05"]
[EventType "swiss"]
[EventRounds "9"]
[EventCountry "GER"]
[SourceTitle "playchess.com"]
[Source "ChessBase"]
[SourceQuality "1"]
[TimeControl "40/4500+30:900+30"]

1. d4 {[%emt 0:00:00]} d5 {[%emt 0:00:00]} 2. e3 {[%emt 0:00:00]} e6 {[%emt 0:00:00]} 3. Bd3 {[%emt 0:00:00]} Bd6 {[%emt 0:00:00]} 4. Nf3 {[%emt 0:00:00]} Nf6 {[%emt 0:00:00]} 5. b3 {[%emt 0:00:00]} c5 {[%emt 0:00:00]} 6. O-O {[%emt 0:00:00]} O-O 7. Bb2 {[%emt 0:00:00]} Nc6 {[%emt 0:00:00]} 8. Nbd2 {[%emt 0:00:00]} b6 {[%emt 0:00:00]} 9. a3 {[%emt 0:00:00]} Bb7 {[%emt 0:00:00]} 10. Ne5 {[%emt 0:00:00]} Rc8 {[%emt 0:00:00]} 11. f4 {[%emt 0:00:00]} Qc7 {[%emt 0:00:00]} 12. Qf3 {[%emt 0:20:51]} Ne7 {[%emt 0:03:35]} 13. g4 {[%emt 0:02:25]} Ng6 {[%emt 0:04:06]} 14. Kf2 {[%emt 0:11:20]} c4 {[%emt 0:04:32]} 15. Bxg6 {[%emt 0:04:16]} hxg6 {[%emt 0:01:32]} 16. c3 {[%emt 0:04:32]} b5 {[%emt 0:07:47]} 17. Ke2 {[%emt 0:07:47]} Ne4 {[%emt 0:06:37]} 18. b4 {[%emt 0:00:15]} a5 {[%emt 0:03:01]} 19. h4 {[%emt 0:03:22]} axb4 {[%emt 0:06:16]} 20. axb4 {[%emt 0:02:37]} Bxb4 {[%emt 0:06:04]} 21. cxb4 {[%emt 0:02:14]} Nxd2 {[%emt 0:02:14]} 22. Kxd2 {[%emt 0:03:08]} c3+ {[%emt 0:00:30]} 23. Bxc3 {[%emt 0:00:14]} Qxc3+ {[%emt 0:00:08]} 24. Ke2 {[%emt 0:01:14]} Qb2+ {[%emt 0:00:15]} 0-1

[Event "GER-ch Youth-ODJM 2022 A"]
[Site "Willingen"]
[Date "2022.06.08"]
[Round "5.3"]
[White "Akcapinar, Timur"]
[Black "Rabus, Johann"]
[Result "1-0"]
[ECO "B13"]
[WhiteElo "1278"]
[BlackElo "1079"]
[Annotator "NA RC COMBH"]
[PlyCount "37"]
[EventDate "2022.06.05"]
[EventType "swiss"]
[EventRounds "9"]
[EventCountry "GER"]
[SourceTitle "playchess.com"]
[Source "ChessBase"]
[SourceQuality "1"]
[TimeControl "40/4500+30:900+30"]

1. e4 {[%emt 0:00:00]} c6 {[%emt 0:00:00]} 2. d4 {[%emt 0:00:00]} d5 {[%emt 0:00:00]} 3. exd5 {[%emt 0:00:00]} cxd5 {[%emt 0:00:00]} 4. Bd3 {[%emt 0:00:00]} Nc6 {[%emt 0:00:00]} 5. c3 {[%emt 0:00:00]} Nf6 {[%emt 0:00:00]} 6. Bf4 {[%emt 0:00:00]} e6 {[%emt 0:00:00]} 7. Nf3 {[%emt 0:00:00]} Bd6 {[%emt 0:00:00]} 8. Ne5 {[%emt 0:02:40]} Qc7 {[%emt 0:01:04]} 9. Qe2 {[%emt 0:04:32]} O-O {[%emt 0:01:17]} 10. Nd2 {[%emt 0:01:58]} Nd7 {[%emt 0:04:34]} 11. Nxd7 Bxd7 {[%emt 0:02:37]} 12. Be3 {[%emt 0:03:24]} a6 {[%emt 0:02:40]} 13. Qh5 {[%emt 0:04:13]} h6 {[%emt 0:03:03]} 14. Bxh6 {[%emt 0:01:39]} gxh6 {[%emt 0:00:12]} 15. Qxh6 {[%emt 0:00:17]} Rfe8 {[%emt 0:00:15]} 16. Bh7+ {[%emt 0:00:10]} Kh8 {[%emt 0:00:18]} 17. Bg6+ {[%emt 0:00:04]} Kg8 {[%emt 0:00:18]} 18. Qh7+ {[%emt 0:00:04]} Kf8 {[%emt 0:00:22]} 19. Qxf7# 1-0

[Event "GER-ch Youth-ODJM 2022 A"]
[Site "Willingen"]
[Date "2022.06.08"]
[Round "5.4"]
[White "Fahlbusch, Niclas"]
[Black "Schöne, Finn"]
[Result "0-1"]
[ECO "D00"]
[WhiteElo "1280"]
[BlackElo "1110"]
[Annotator "NA RC COMBH"]
[PlyCount "65"]
[EventDate "2022.06.05"]
[EventType "swiss"]
[EventRounds "9"]
[EventCountry "GER"]
[SourceTitle "playchess.com"]
[Source "ChessBase"]
[SourceQuality "1"]
[TimeControl "40/4500+30:900+30"]

1. d4 {[%emt 0:03:55]} d5 {[%emt 0:00:00]} 2. Bf4 {[%emt 0:00:11]} e6 {[%emt 0:00:00]} 3. Nf3 {[%emt 0:00:13]} Nf6 {[%emt 0:00:00]} 4. e3 {[%emt 0:00:56]} Bd6 {[%emt 0:00:00]} 5. Bg3 {[%emt 0:00:54]} Ne4 {[%emt 0:00:00]} 6. Bxd6 {[%emt 0:01:33]} Qxd6 {[%emt 0:00:00]} 7. c3 {[%emt 0:01:33]} c5 {[%emt 0:02:27]} 8. Nbd2 {[%emt 0:02:12]} cxd4 {[%emt 0:07:25]} 9. exd4 {[%emt 0:00:31]} f5 {[%emt 0:00:34]} 10. Bd3 {[%emt 0:03:57]} O-O {[%emt 0:03:36]} 11. Ne5 {[%emt 0:04:18]} Nd7 {[%emt 0:02:06]} 12. Ndf3 {[%emt 0:03:04]} Nxe5 {[%emt 0:03:02]} 13. Nxe5 {[%emt 0:01:05]} Bd7 {[%emt 0:01:32]} 14. f3 {[%emt 0:00:14]} Nc5 {[%emt 0:00:36]} 15. Nxd7 {[%emt 0:01:43]} Nxd7 {[%emt 0:00:04]} 16. Qc2 {[%emt 0:00:14]} g6 {[%emt 0:00:54]} 17. O-O-O {[%emt 0:01:28]} Rae8 {[%emt 0:02:34]} 18. Bb5 {[%emt 0:00:11]} Re7 {[%emt 0:00:46]} 19. Bxd7 {[%emt 0:00:31]} Qxd7 20. h4 {[%emt 0:00:32]} h5 {[%emt 0:00:33]} 21. g4 {[%emt 0:01:09]} Rh7 {[%emt 0:01:31]} 22. Rde1 {[%emt 0:03:43]} Qe7 {[%emt 0:01:03]} 23. Qe2 {[%emt 0:00:24]} Re8 {[%emt 0:00:16]} 24. Kb1 {[%emt 0:00:49]} hxg4 {[%emt 0:00:09]} 25. fxg4 {[%emt 0:00:12]} Rxh4 {[%emt 0:00:06]} 26. gxf5 {[%emt 0:00:12]} Rxh1 {[%emt 0:01:49]} 27. Rxh1 {[%emt 0:00:08]} exf5 {[%emt 0:00:07]} 28. Qxe7 {[%emt 0:00:37]} Rxe7 {[%emt 0:00:01]} 29. Rg1 {[%emt 0:00:15]} Kg7 {[%emt 0:00:42]} 30. Rg2 {[%emt 0:00:19]} f4 {[%emt 0:00:11]} 31. Rg5 {[%emt 0:00:37]} f3 {[%emt 0:00:15]} 32. Rg1 {[%emt 0:00:56]} f2 {[%emt 0:00:02]} 33. Ka1 {[%emt 0:00:22]} 0-1

[Event "GER-ch Youth-ODJM 2022 A"]
[Site "Willingen"]
[Date "2022.06.08"]
[Round "5.5"]
[White "Reger, Christoph"]
[Black "Braschler, David"]
[Result "1/2-1/2"]
[ECO "A45"]
[WhiteElo "1056"]
[BlackElo "1046"]
[Annotator "NA RC COMBH"]
[PlyCount "76"]
[EventDate "2022.06.05"]
[EventType "swiss"]
[EventRounds "9"]
[EventCountry "GER"]
[SourceTitle "playchess.com"]
[Source "ChessBase"]
[SourceQuality "1"]
[TimeControl "40/4500+30:900+30"]

1. d4 {[%emt 0:00:00]} Nf6 {[%emt 0:00:00]} 2. Bf4 {[%emt 0:00:00]} d5 {[%emt 0:00:00]} 3. e3 {[%emt 0:00:00]} e6 {[%emt 0:00:00]} 4. c3 {[%emt 0:00:00]} c5 {[%emt 0:00:00]} 5. Nd2 {[%emt 0:00:00]} Nc6 {[%emt 0:00:00]} 6. Ngf3 {[%emt 0:00:00]} Bd6 {[%emt 0:00:00]} 7. Bg3 {[%emt 0:00:00]} b6 {[%emt 0:00:00]} 8. Bd3 {[%emt 0:00:00]} c4 {[%emt 0:00:00]} 9. Bc2 {[%emt 0:00:00]} a5 {[%emt 0:00:00]} 10. b3 {[%emt 0:00:00]} b5 {[%emt 0:00:00]} 11. Bxd6 {[%emt 0:00:00]} Qxd6 {[%emt 0:00:00]} 12. O-O {[%emt 0:00:00]} O-O {[%emt 0:00:00]} 13. h3 {[%emt 0:00:00]} h6 {[%emt 0:00:00]} 14. Qe2 {[%emt 0:00:00]} Bd7 {[%emt 0:00:00]} 15. e4 {[%emt 0:00:00]} dxe4 {[%emt 0:00:00]} 16. Nxe4 {[%emt 0:00:00]} Nxe4 {[%emt 0:00:00]} 17. Bxe4 {[%emt 0:00:00]} f5 {[%emt 0:00:00]} 18. Bxc6 {[%emt 0:00:00]} Bxc6 {[%emt 0:00:00]} 19. bxc4 {[%emt 0:00:00]} Bxf3 {[%emt 0:00:00]} 20. gxf3 {[%emt 0:00:00]} bxc4 {[%emt 0:00:00]} 21. Qxc4 {[%emt 0:00:10]} Kh8 {[%emt 0:00:00]} 22. Rfe1 {[%emt 0:03:05]} Rfe8 {[%emt 0:00:00]} 23. Re5 {[%emt 0:06:02]} Rac8 {[%emt 0:02:33]} 24. Rc5 {[%emt 0:08:47]} Rxc5 {[%emt 0:00:09]} 25. Qxc5 {[%emt 0:01:33]} Qxc5 {[%emt 0:01:07]} 26. dxc5 {[%emt 0:00:17]} Rc8 {[%emt 0:00:03]} 27. Re1 {[%emt 0:01:58]} Rc6 {[%emt 0:00:17]} 28. Re5 {[%emt 0:01:48]} Kg8 {[%emt 0:00:08]} 29. Kg2 {[%emt 0:03:54]} Kf7 {[%emt 0:00:14]} 30. f4 {[%emt 0:01:08]} Kf6 {[%emt 0:02:18]} 31. h4 {[%emt 0:01:54]} g5 {[%emt 0:00:42]} 32. hxg5+ {[%emt 0:02:25]} hxg5 {[%emt 0:00:18]} 33. Kf3 {[%emt 0:00:36]} a4 {[%emt 0:00:27]} 34. a3 {[%emt 0:11:06]} Ra6 {[%emt 0:01:45]} 35. Re2 {[%emt 0:03:29]} gxf4 {[%emt 0:00:21]} 36. Kxf4 {[%emt 0:00:11]} Ra5 {[%emt 0:00:08]} 37. Re5 {[%emt 0:00:18]} Rb5 {[%emt 0:01:03]} 38. c4 {[%emt 0:01:31]} Ra5 {[%emt 0:00:05]} 1/2-1/2

[Event "GER-ch Youth-ODJM 2022 A"]
[Site "Willingen"]
[Date "2022.06.08"]
[Round "5.6"]
[White "Sabirov, Ramil"]
[Black "Jenner, Meikel"]
[Result "1-0"]
[ECO "B30"]
[WhiteElo "2124"]
[BlackElo "1981"]
[Annotator "TA"]
[PlyCount "55"]
[EventDate "2022.06.05"]
[EventType "swiss"]
[EventRounds "9"]
[EventCountry "GER"]
[SourceTitle "playchess.com"]
[Source "ChessBase"]
[SourceQuality "1"]
[TimeControl "40/4500+30:900+30"]

{[%evp 12,55,0,0,50,15,46,35,99,89,69,73,95,81,212,205,206,208,314,318,518,313,279,264,399,399,343,222,494,494,504,397,1198,1193,1197,1185,1742,1679,1516,1150,1156,1148,1120,1120,1086,1063]} 1. e4 {[%emt 0:00:00][%cal Be2e4,Be4e5][%mdl 32]} c5 {[%emt 0:00:00]} 2. Nf3 {[%emt 0:00:00]} Nc6 {[%emt 0:00:00]} 3. c3 {[%emt 0:00:00][%cal Bc2c3,Bc3d4,Bd4d5][%mdl 32]} Nf6 {[%emt 0:00:00]} 4. e5 {[%emt 0:00:00]} Nd5 {[%emt 0:00:00]} 5. d4 {[%emt 0:00:00]} cxd4 {[%emt 0:00:00]} 6. cxd4 {[%emt 0:00:00]} d6 {[%emt 0:00:00]} 7. Bc4 {[%emt 0:00:00]} Nc7 {[%emt 0:00:00] B22: Sicilian: 2 c3.} (7... Nb6 $11 8. Bb5 e6) 8. exd6 {[%emt 0:00:00]} Qxd6 {[%emt 0:00:00]} 9. Nc3 {[%emt 0:00:00]} g6 {[%emt 0:00:00]} ({Black should play} 9... e6 $1 $14) 10. O-O {[%emt 0:06:54] And now d5 would win.} Bg7 {[%emt 0:00:00]} 11. d5 $1 {[%emt 0:09:58]} Ne5 {[%emt 0:00:00]} 12. Ne4 $36 {[%emt 0:04:05][%mdl 2048] [#] White has strong initiative.} Qd8 $146 {[%emt 0:00:00]} (12... Qb4 $16 13. Nxe5 Bxe5) ({Predecessor:} 12... Qb4 13. Nxe5 Bxe5 14. Qe2 b5 15. Bb3 Bf5 16. Ng3 Qd6 17. Bh6 a6 18. Rfe1 Bf6 {1-0 (41) Chuzhakin,E (2204)-Ponomarenko,V (2228) Tula 2007}) 13. Nxe5 $18 {[%emt 0:06:19]} Bxe5 {[%emt 0:00:00]} 14. Bh6 {[%emt 0:02:33][%cal Bc1h6,Bh6g7,Bg7e5,Be5f6,Bf6e7,Be7d6][%mdl 32] f4 is the strong threat.} b5 {[%emt 0:00:00] [#]} (14... Bf5 $142) 15. Bb3 $1 {[%emt 0:05:41]} Bb7 $2 {[%emt 0:00:00]} (15... Bf5 {was necessary.} 16. Re1 Bxe4 17. Rxe4 Bd6) 16. f4 {[%emt 0:09:18]} Bxb2 {[%emt 0:00:00][%cal Rc7d5]} 17. Rb1 {[%emt 0:02:45]} Ba3 {[%emt 0:00:00]} (17... Nxd5 $142 18. Rxb2 Qb6+ 19. Nf2 Ne3) 18. Re1 {[%emt 0:10:26][%cal Re4f6]} Kd7 {[%emt 0:00:00]} 19. Bg7 {[%emt 0:07:01]} Rg8 $2 {[%emt 0:01:51]} (19... Kc8 20. Bxh8 Qxh8) 20. Be5 {[%emt 0:02:45]} Bd6 {[%emt 0:05:25]} 21. Qd4 {[%emt 0:01:44]} Kc8 $2 {[%emt 0:00:48]} (21... Ne8 22. Qe3 Kc8) 22. Nxd6+ {[%emt 0:03:11][%mdl 64] [#] Deflection. White is clearly winning.} exd6 {[%emt 0:03:30]} 23. Bf6 {[%emt 0:00:04]} Qf8 {[%emt 0:02:54]} 24. Rbc1 {[%emt 0:00:42] Intending Qc3 and mate.} Kb8 {[%emt 0:01:59]} 25. Be7 {[%emt 0:03:14] This bishop pair is nice.} Qg7 {[%emt 0:00:19]} 26. Qxg7 {[%emt 0:00:05]} Rxg7 {[%emt 0:00:04]} 27. Bxd6 {[%emt 0:00:04]} f6 {[%emt 0:00:04]} 28. Rxc7 {[%emt 0:00:19] White took control after the opening.  Weighted Error Value: White=0.28 (precise) /Black=0.83} 1-0

[Event "GER-ch Youth-ODJM 2022 A"]
[Site "Willingen"]
[Date "2022.06.08"]
[Round "5.7"]
[White "Hildebrand, Azat"]
[Black "Direk, Oguzhan"]
[Result "0-1"]
[ECO "D05"]
[WhiteElo "1190"]
[BlackElo "1020"]
[Annotator "NA RC COMBH"]
[PlyCount "98"]
[EventDate "2022.06.05"]
[EventType "swiss"]
[EventRounds "9"]
[EventCountry "GER"]
[SourceTitle "playchess.com"]
[Source "ChessBase"]
[SourceQuality "1"]
[TimeControl "40/4500+30:900+30"]

1. d4 {[%emt 0:00:00]} d5 {[%emt 0:00:00]} 2. Nf3 {[%emt 0:00:00]} Nf6 {[%emt 0:00:00]} 3. e3 {[%emt 0:00:00]} e6 {[%emt 0:00:00]} 4. Bd3 {[%emt 0:00:00]} Nbd7 {[%emt 0:00:00]} 5. Nbd2 {[%emt 0:00:00]} c6 {[%emt 0:00:00]} 6. Qe2 {[%emt 0:00:00]} Be7 {[%emt 0:00:00]} 7. O-O {[%emt 0:00:00]} Qc7 {[%emt 0:00:00]} 8. Re1 {[%emt 0:00:00]} Nb6 {[%emt 0:00:44]} 9. b3 {[%emt 0:00:00]} Nfd7 {[%emt 0:01:44]} 10. Bb2 {[%emt 0:01:07]} g5 {[%emt 0:03:41]} 11. h3 {[%emt 0:04:41]} h5 {[%emt 0:00:12]} 12. g3 {[%emt 0:11:00]} f6 {[%emt 0:04:39]} 13. Nh2 {[%emt 0:03:37]} Bd6 {[%emt 0:03:14]} 14. Bg6+ {[%emt 0:02:04]} Ke7 {[%emt 0:01:27]} 15. f4 {[%emt 0:18:22]} h4 {[%emt 0:00:45]} 16. g4 {[%emt 0:02:02]} e5 {[%emt 0:01:01]} 17. e4 {[%emt 0:03:34]} Kd8 {[%emt 0:01:07]} 18. Nhf1 {[%emt 0:02:16]} gxf4 19. Nf3 {[%emt 0:03:45]} Nf8 {[%emt 0:02:57]} 20. Bh5 {[%emt 0:03:12]} Be6 {[%emt 0:01:27]} 21. dxe5 {[%emt 0:02:37]} fxe5 {[%emt 0:00:28]} 22. Nxh4 {[%emt 0:01:53]} dxe4 {[%emt 0:00:25]} 23. Qxe4 {[%emt 0:00:48]} Bc5+ {[%emt 0:00:04]} 24. Kh2 {[%emt 0:01:20]} Nfd7 {[%emt 0:01:29]} 25. Rad1 {[%emt 0:01:43]} Kc8 {[%emt 0:00:10]} 26. Ng6 {[%emt 0:02:35]} Bd5 {[%emt 0:00:17]} 27. Qf5 {[%emt 0:02:18]} Rg8 {[%emt 0:00:40]} 28. Rxe5 {[%emt 0:02:00]} f3 {[%emt 0:00:19]} 29. Qf7 {[%emt 0:01:19]} Bxf7 {[%emt 0:00:13]} 30. Rxd7 {[%emt 0:04:20]} Nxd7 {[%emt 0:00:09]} 31. Kh1 {[%emt 0:01:27]} Nxe5 {[%emt 0:00:46]} 32. Bxe5 {[%emt 0:00:18]} Bd6 {[%emt 0:00:10]} 33. Bxd6 {[%emt 0:00:33]} Qxd6 {[%emt 0:00:02]} 34. Nh4 {[%emt 0:00:43]} Bxh5 35. Nxf3 {[%emt 0:01:49]} Qd5 {[%emt 0:00:40]} 36. N1h2 {[%emt 0:01:01]} Bxg4 {[%emt 0:00:12]} 37. hxg4 {[%emt 0:00:20]} Rh8 {[%emt 0:00:18]} 38. Kg1 {[%emt 0:00:24]} Kc7 {[%emt 0:00:25]} 39. g5 {[%emt 0:00:31]} Rxh2 {[%emt 0:00:09]} 40. Nxh2 {[%emt 0:00:14]} Qxg5+ 41. Kf2 {[%emt 0:15:18]} Rf8+ {[%emt 0:15:08]} 42. Nf3 {[%emt 0:00:29]} Qf4 {[%emt 0:00:02]} 43. Ke2 {[%emt 0:00:19]} Qxf3+ {[%emt 0:00:07]} 44. Kd2 {[%emt 0:00:10]} Rd8+ {[%emt 0:00:01]} 45. Kc1 {[%emt 0:00:33]} b5 {[%emt 0:00:20]} 46. Kb2 {[%emt 0:00:49]} b4 {[%emt 0:00:01]} 47. a3 {[%emt 0:00:25]} Qc3+ {[%emt 0:00:02]} 48. Ka2 {[%emt 0:00:54]} Qxc2+ {[%emt 0:00:07]} 49. Ka1 {[%emt 0:00:31]} Rd1# {[%emt 0:00:01]} 0-1

[Event "GER-ch Youth-ODJM 2022 A"]
[Site "Willingen"]
[Date "2022.06.08"]
[Round "5.8"]
[White "Löffelholz, Simon"]
[Black "Ginschel, Leonhard"]
[Result "1-0"]
[ECO "C44"]
[WhiteElo "1044"]
[BlackElo "1236"]
[Annotator "NA RC COMBH"]
[PlyCount "41"]
[EventDate "2022.06.05"]
[EventType "swiss"]
[EventRounds "9"]
[EventCountry "GER"]
[SourceTitle "playchess.com"]
[Source "ChessBase"]
[SourceQuality "1"]
[TimeControl "40/4500+30:900+30"]

1. e4 {[%emt 0:00:00]} e5 {[%emt 0:00:00]} 2. Nf3 {[%emt 0:00:00]} Nc6 {[%emt 0:00:00]} 3. d4 {[%emt 0:00:00]} exd4 {[%emt 0:00:00]} 4. Nxd4 {[%emt 0:00:00]} Qh4 {[%emt 0:00:00]} 5. Nc3 {[%emt 0:00:00]} Bb4 6. Bd3 {[%emt 0:00:00]} Nxd4 {[%emt 0:00:00]} 7. O-O {[%emt 0:00:00]} Bxc3 {[%emt 0:00:00]} 8. bxc3 {[%emt 0:00:00]} Nc6 {[%emt 0:00:00]} 9. Bc4 {[%emt 0:00:00]} d6 {[%emt 0:00:00]} 10. f3 {[%emt 0:00:00]} Qh5 {[%emt 0:01:11]} 11. Be3 {[%emt 0:00:27]} Bd7 {[%emt 0:04:43]} 12. Rb1 {[%emt 0:02:32]} Rb8 {[%emt 0:01:24]} 13. Rb5 {[%emt 0:00:39]} Qg6 {[%emt 0:06:49]} 14. Qd2 {[%emt 0:03:23]} Nf6 {[%emt 0:06:24]} 15. Rg5 {[%emt 0:06:11]} Qh6 {[%emt 0:01:48]} 16. Bb5 {[%emt 0:05:10]} g6 {[%emt 0:05:55]} 17. Bxc6 {[%emt 0:01:41]} Bxc6 {[%emt 0:05:06]} 18. Re5+ {[%emt 0:00:33]} dxe5 {[%emt 0:01:23]} 19. Bxh6 {[%emt 0:00:21]} Rd8 {[%emt 0:00:33]} 20. Qe3 {[%emt 0:01:03]} Ng8 {[%emt 0:02:53]} 21. Bg7 {[%emt 0:08:33]} 1-0

[Event "GER-ch Youth-ODJM 2022 A"]
[Site "Willingen"]
[Date "2022.06.08"]
[Round "5.9"]
[White "Koll, Linus"]
[Black "Gallasch, Jonas"]
[Result "0-1"]
[ECO "B10"]
[WhiteElo "1989"]
[BlackElo "2060"]
[Annotator "TA"]
[PlyCount "64"]
[EventDate "2022.06.05"]
[EventType "swiss"]
[EventRounds "9"]
[EventCountry "GER"]
[SourceTitle "playchess.com"]
[Source "ChessBase"]
[SourceQuality "1"]
[TimeControl "40/4500+30:900+30"]

{[%evp 9,64,0,27,23,22,26,28,31,52,47,50,29,39,36,54,57,74,-56,-53,-36,-37,-31,-41,-38,-42,-39,-29,-49,-49,-46,-36,-28,-27,-49,-50,-60,-57,-67,-62,-106,-106,-106,-104,-107,-109,-131,-139,-134,-130,-141,-148,-891,-885,-848,-826,-996,-982]} 1. e4 {[%emt 0:00:00]} c6 {[%emt 0:00:00]} 2. Nf3 {[%emt 0:00:00]} d5 {[%emt 0:00:00]} 3. exd5 {[%emt 0:00:00]} cxd5 {[%emt 0:00:00]} 4. Ne5 {[%emt 0:00:00]} Nc6 {[%emt 0:00:00]} 5. d4 {[%emt 0:00:00]} Nxe5 {[%emt 0:00:00]} 6. dxe5 {[%emt 0:00:00] White wants to play Bb5+. B10: Caro-Kann: 2 d3 and 2 c4.} e6 {[%emt 0:00:00]} 7. Bd3 {[%emt 0:00:00]} Qc7 {[%emt 0:00:00]} 8. Qe2 {[%emt 0:00:00] White has an edge.} Bc5 {[%emt 0:00:00] [#]} 9. Nd2 $146 {[%emt 0:00:00]} ({Predecessor:} 9. O-O Ne7 10. Nd2 Ng6 11. Nf3 Bd7 12. Bd2 O-O 13. Rae1 a6 14. Ng5 Bc8 15. Qh5 {½-½ (25) Munoz Pelaez,M (2104)-Perez Beltran,S (1908) Caleta 2017}) 9... Ne7 {[%emt 0:05:01]} 10. Nb3 {[%emt 0:00:00]} Bb6 {[%emt 0:01:27]} 11. O-O {[%emt 0:00:00]} Nc6 {[%emt 0:06:23]} 12. Re1 {[%emt 0:04:10]} O-O {[%emt 0:03:34][%cal Bh8f8,Bf8f6,Bf6f4][%mdl 32] [#]} 13. Bg5 {[%emt 0:11:45] [#]} ({Better is} 13. Qh5 $1 $16 {[%csl Gd3][%cal Rh5h7]} g6 14. Qh4) 13... Nxe5 $1 $15 {[%emt 0:05:53]} 14. Qxe5 {[%emt 0:09:33]} Qxe5 {[%emt 0:00:29]} 15. Rxe5 {[%emt 0:00:05] Black must now prevent Ree1.} f6 {[%emt 0:00:06]} 16. Bxf6 {[%emt 0:00:44]} Rxf6 {[%emt 0:02:01]} 17. Rf1 {[%emt 0:03:16]} Bd7 {[%emt 0:03:21]} 18. c4 {[%emt 0:06:22]} Raf8 {[%emt 0:03:33]} 19. Re2 {[%emt 0:00:48]} ({Don't go for} 19. cxd5 $2 Rxf2 20. Rxf2 Rxf2 $19) 19... Rf4 {[%emt 0:02:13]} 20. c5 {[%emt 0:11:28]} Bc7 {[%emt 0:00:34]} 21. c6 {[%emt 0:00:09]} Bxc6 {[%emt 0:10:39] aiming for ...e5.} 22. Nc5 {[%emt 0:00:12]} e5 {[%emt 0:00:25][%cal Be6e5,Be5e4][%mdl 32] Strongly threatening ...e4.} 23. Ne6 {[%emt 0:01:42][%csl LRc7,LRf4,LRf8]} e4 $36 {[%emt 0:00:09][%mdl 2048] Black has some pressure.} 24. Bb1 {[%emt 0:07:56]} Bb5 {[%emt 0:01:04]} 25. Rc2 {[%emt 0:01:53]} Bxf1 {[%emt 0:01:16]} 26. Kxf1 {[%emt 0:02:46] [#]} Bb6 $1 {[%emt 0:00:46][%cal Rf4f2]} 27. Nxf4 {[%emt 0:00:44]} (27. f3 g6) 27... Rxf4 $17 {[%emt 0:00:04] KRB-KRB} 28. g3 {[%emt 0:04:37]} Rf3 {[%emt 0:02:27]} 29. Kg2 {[%emt 0:00:08]} Kf7 {[%emt 0:01:12] 0x0.002ac502406ddp-1022s more active pieces.} 30. Rc8 $2 {[%emt 0:03:44][%mdl 8192]} (30. Rd2 $17) 30... Rxf2+ $19 {[%emt 0:00:43] Black is clearly winning.} 31. Kh3 {[%emt 0:00:41]} Rxb2 {[%emt 0:00:31]} 32. Bc2 {[%emt 0:00:16]} e3 {[%emt 0:01:12] Weighted Error Value: White=0.48/Black=0.04 (flawless)} 0-1

[Event "GER-ch Youth-ODJM 2022 A"]
[Site "Willingen"]
[Date "2022.06.08"]
[Round "5.10"]
[White "Metzinger, Hannes"]
[Black "Schmitt, Daniel"]
[Result "0-1"]
[ECO "B44"]
[WhiteElo "1845"]
[BlackElo "2128"]
[Annotator "TA"]
[PlyCount "52"]
[EventDate "2022.06.05"]
[EventType "swiss"]
[EventRounds "9"]
[EventCountry "GER"]
[SourceTitle "playchess.com"]
[Source "ChessBase"]
[SourceQuality "1"]
[TimeControl "40/4500+30:900+30"]

{[%evp 12,52,8,10,13,13,10,-6,-14,-33,-42,-187,-203,-216,-210,-217,-206,-220,-227,-253,-226,-228,-227,-272,-227,-360,-373,-320,-291,-320,-293,-306,-300,-503,-482,-473,-410,-405,-415,-441,-385,-398,-384]} 1. e4 {[%emt 0:00:00]} c5 {[%emt 0:00:00]} 2. Nf3 {[%emt 0:00:00][%cal Bg1f3,Bf3d4,Bd4b5,Bb5a3][%mdl 32]} e6 {[%emt 0:00:00]} 3. d4 {[%emt 0:00:00]} cxd4 {[%emt 0:00:00]} 4. Nxd4 {[%emt 0:00:00]} Nc6 {[%emt 0:00:00][%cal Bb8c6,Bc6e5,Be5d3][%mdl 32]} 5. Nb5 {[%emt 0:00:00]} d6 {[%emt 0:00:00]} 6. c4 {[%emt 0:00:00]} Nf6 {[%emt 0:00:00]} 7. N1c3 {[%emt 0:00:00]} a6 {[%emt 0:00:00] B44: Sicilian: Taimanov: 5 Nb5.} 8. Na3 {[%emt 0:00:00] 8.Nd4 is more advanced technology.} Qa5 {[%emt 0:00:00]} 9. Bd3 {[%emt 0:00:00]} Ne5 {[%emt 0:00:00] aiming for ...d5. The position is equal.} 10. O-O {[%emt 0:00:00]} d5 {[%emt 0:00:00] [#]} 11. exd5 $146 {[%emt 0:00:00]} ({Not} 11. Bf4 $2 Bxa3 12. Bxe5 Bxb2 13. Bxf6 gxf6 14. Nxd5 exd5 $19) ({White should try} 11. f4 $15 Nxc4 12. Nc2 (12. Nxc4 dxc4 13. Bc2 Bd7 $15)) ({Predecessor:} 11. f4 Nxd3 12. Qxd3 Bxa3 13. bxa3 Qc5+ 14. Be3 Qxc4 15. Qxc4 dxc4 16. Bc5 Bd7 17. e5 {0-1 (43) Janocha,W (2269)-Edouard,R (2659) Wroclaw 2014}) 11... Bxa3 $19 {[%emt 0:00:00]} 12. Re1 {[%emt 0:09:36]} Nxd3 {[%emt 0:03:33]} 13. Qxd3 {[%emt 0:00:05]} Be7 {[%emt 0:02:07][%cal Ba3e7,Be7d8,Bd8f6][%mdl 32]} 14. d6 {[%emt 0:00:25]} Bd8 {[%emt 0:00:46]} 15. a3 {[%emt 0:01:10]} O-O {[%emt 0:01:03]} 16. b4 {[%emt 0:00:10]} Qf5 {[%emt 0:03:37]} 17. Qd4 {[%emt 0:00:27]} Ng4 {[%emt 0:12:34][%cal Bf6g4,Bg4h6,Bh6f5][%mdl 32] [#] Hoping for ...Bf6.} 18. Bb2 {[%emt 0:01:39]} (18. Ne4 $142) 18... Bf6 {[%emt 0:00:26]} 19. Qd2 {[%emt 0:00:07]} Bd7 {[%emt 0:02:40] Against Na4. And now ...Ne5 would win.} 20. f4 {[%emt 0:05:00]} h5 {[%emt 0:05:08]} ({Wrong is} 20... Qh5 $2 21. h3 Nh6 22. Ne4 $19) 21. h3 {[%emt 0:05:23]} Nh6 {[%emt 0:01:20]} 22. Re5 $2 {[%emt 0:00:22]} (22. Ne2 {keeps fighting.}) 22... Bxe5 {[%emt 0:01:27]} 23. fxe5 {[%emt 0:00:04]} Qg6 {[%emt 0:03:42]} 24. Ne2 {[%emt 0:00:33]} Nf5 {[%emt 0:04:01] [#] ...Nh4 is the strong threat.} 25. Rf1 {[%emt 0:00:50]} Bc6 {[%emt 0:09:41][%csl Gc6][%cal Rg6g2]} 26. Nf4 {[%emt 0:00:10]} Qg5 {[%emt 0:03:24] White got outplayed after the opening.  Weighted Error Value: White=0.43/Black=0.15 (very precise)} 0-1